[Event "ESCC-65 2022"]
[Site "Lublin"]
[Date "2022.07.12"]
[Round "8.16"]
[White "Virtanen, Esko"]
[Black "Plesiuk, Jan"]
[Result "0-1"]
[ECO "A06"]
[WhiteElo "1709"]
[BlackElo "1573"]
[Annotator "NA"]
[PlyCount "90"]
[EventDate "2022.07.05"]
[EventType "swiss"]
[EventCountry "POL"]
[SourceTitle "playchess.com"]
[Source "ChessBase"]
[SourceQuality "1"]
[TimeControl "40/5400+30:1800+30"]

1. Nf3 {[%emt 0:00:03]} d5 {[%emt 0:01:08]} 2. d4 {[%emt 0:00:09]} c6 {[%emt 0:01:34]} 3. c4 {[%emt 0:00:18]} e6 {[%emt 0:00:29]} 4. Bf4 {[%emt 0:02:49]} Bd6 {[%emt 0:02:01]} 5. Bxd6 {[%emt 0:00:44]} Qxd6 {[%emt 0:00:03]} 6. e3 {[%emt 0:00:27]} Nf6 {[%emt 0:00:48]} 7. Nc3 {[%emt 0:00:07]} O-O {[%emt 0:00:30]} 8. Rc1 {[%emt 0:00:39]} Nbd7 {[%emt 0:01:58]} 9. h3 {[%emt 0:01:12]} Re8 {[%emt 0:01:48]} 10. Be2 {[%emt 0:01:01]} h6 {[%emt 0:02:15]} 11. O-O {[%emt 0:00:14]} dxc4 {[%emt 0:00:26]} 12. Bxc4 {[%emt 0:00:03]} e5 {[%emt 0:01:07]} 13. Qb3 {[%emt 0:02:07]} Qf8 {[%emt 0:02:48]} 14. Nh4 {[%emt 0:00:39]} exd4 {[%emt 0:07:11]} 15. Ng6 {[%emt 0:00:24]} Nc5 {[%emt 0:00:34]} 16. Bxf7+ Qxf7 17. Qxf7+ {[%emt 0:02:16]} Kxf7 {[%emt 0:00:37]} 18. exd4 {[%emt 0:00:20]} Kxg6 {[%emt 0:02:43]} 19. dxc5 {[%emt 0:00:02]} Be6 {[%emt 0:02:49]} 20. a3 {[%emt 0:00:25]} Bc4 {[%emt 0:02:14]} 21. Rfe1 {[%emt 0:02:31]} Rxe1+ {[%emt 0:00:24]} 22. Rxe1 {[%emt 0:00:01]} Re8 {[%emt 0:00:00]} 23. Rd1 {[%emt 0:00:00]} Nd5 {[%emt 0:04:52]} 24. Nxd5 {[%emt 0:02:39]} cxd5 {[%emt 0:02:43]} 25. Rc1 {[%emt 0:02:35]} Re2 {[%emt 0:01:18]} 26. b4 {[%emt 0:05:13]} Bb5 {[%emt 0:02:34]} 27. Rd1 {[%emt 0:01:44]} Bc6 {[%emt 0:00:53]} 28. Rd3 {[%emt 0:01:35]} Re5 {[%emt 0:04:24]} 29. Kh2 {[%emt 0:03:03]} Kf6 {[%emt 0:01:07]} 30. g4 {[%emt 0:04:38]} g5 {[%emt 0:00:55]} 31. Kg3 {[%emt 0:00:11]} Re4 {[%emt 0:02:33]} 32. h4 {[%emt 0:02:04]} Rf4 {[%emt 0:02:13]} 33. hxg5+ {[%emt 0:00:48]} hxg5 {[%emt 0:00:08]} 34. f3 {[%emt 0:04:45]} d4 {[%emt 0:00:38]} 35. Kf2 {[%emt 0:01:15]} Ke5 {[%emt 0:00:36]} 36. a4 {[%emt 0:02:36]} a6 {[%emt 0:00:21]} 37. Rb3 {[%emt 0:00:05]} Bxa4 {[%emt 0:00:32]} 38. Rb1 {[%emt 0:00:54]} Bc2 {[%emt 0:02:57]} 39. Re1+ {[%emt 0:02:29]} Kd5 {[%emt 0:00:19]} 40. Re7 {[%emt 0:00:00]} Bd1 41. Rxb7 Bxf3 {[%emt 0:10:35]} 42. Rd7+ {[%emt 0:04:51]} Kc4 {[%emt 0:00:40]} 43. Rg7 {[%emt 0:00:43]} Bxg4+ {[%emt 0:04:30]} 44. Kg3 {[%emt 0:01:13]} d3 {[%emt 0:01:09]} 45. Rxg5 {[%emt 0:00:28]} Rd4 0-1

[Event "ESCC-65 2022"]
[Site "Lublin"]
[Date "2022.07.13"]
[Round "9.1"]
[White "Stebbings, Anthony J"]
[Black "Renman, Nils-Gustaf"]
[Result "1/2-1/2"]
[ECO "D45"]
[WhiteElo "2283"]
[BlackElo "2311"]
[Annotator "ChessBase"]
[PlyCount "52"]
[EventDate "2022.07.05"]
[EventType "swiss"]
[EventCountry "POL"]
[SourceTitle "playchess.com"]
[Source "ChessBase"]
[SourceQuality "1"]
[TimeControl "40/5400+30:1800+30"]

1. d4 {[%emt 0:00:02]} d5 {[%emt 0:00:04]} 2. c4 {[%emt 0:00:04]} c6 {[%emt 0:00:05]} 3. Nc3 {[%emt 0:00:05]} Nf6 {[%emt 0:00:09]} 4. e3 {[%emt 0:00:12]} e6 {[%emt 0:00:21]} 5. Nf3 {[%emt 0:00:05]} Nbd7 {[%emt 0:00:05]} 6. Qc2 {[%emt 0:00:07]} Bd6 {[%emt 0:00:05]} 7. Bd3 {[%emt 0:00:06]} dxc4 {[%emt 0:00:08]} 8. Bxc4 {[%emt 0:00:06]} b5 {[%emt 0:00:05]} 9. Bd3 {[%emt 0:00:11]} Bb7 {[%emt 0:00:09]} 10. O-O {[%emt 0:01:11]} O-O {[%emt 0:07:41]} 11. e4 {[%emt 0:00:12]} e5 {[%emt 0:00:06]} 12. h3 {[%emt 0:00:11]} a6 {[%emt 0:00:55]} 13. dxe5 {[%emt 0:00:29]} Nxe5 {[%emt 0:00:04]} 14. Nxe5 {[%emt 0:00:04]} Bxe5 {[%emt 0:00:13]} 15. Be3 {[%emt 0:00:08]} Bd4 {[%emt 0:13:37]} 16. Bxd4 {[%emt 0:02:16]} Qxd4 {[%emt 0:00:03]} 17. Rad1 {[%emt 0:03:01]} Qc5 {[%emt 0:07:43]} 18. Kh2 {[%emt 0:11:52]} Rfe8 {[%emt 0:03:17]} 19. f4 {[%emt 0:01:54]} Qh5 {[%emt 0:00:55]} 20. Rde1 {[%emt 0:10:30]} c5 {[%emt 0:23:28]} 21. e5 {[%emt 0:04:25]} Nd5 {[%emt 0:00:34]} 22. Nxd5 {[%emt 0:01:20]} Bxd5 {[%emt 0:00:02]} 23. Qxc5 {[%emt 0:06:10]} Bxa2 {[%emt 0:01:03]} 24. f5 {[%emt 0:01:57]} Rad8 {[%emt 0:01:48]} 25. Rf3 {[%emt 0:11:04]} Qh4 {[%emt 0:02:01]} 26. Re4 {[%emt 0:10:34]} Qe7 {[%emt 0:00:20]} 1/2-1/2

[Event "ESCC-65 2022"]
[Site "Lublin"]
[Date "2022.07.13"]
[Round "9.2"]
[White "Chapman, Terry P D"]
[Black "Petran, Peter"]
[Result "1-0"]
[ECO "B06"]
[WhiteElo "2207"]
[BlackElo "2234"]
[Annotator "ChessBase"]
[PlyCount "161"]
[EventDate "2022.07.05"]
[EventType "swiss"]
[EventCountry "POL"]
[SourceTitle "playchess.com"]
[Source "ChessBase"]
[SourceQuality "1"]
[TimeControl "40/5400+30:1800+30"]

1. d4 {[%emt 0:01:59]} g6 {[%emt 0:00:14]} 2. e4 {[%emt 0:00:08]} Bg7 {[%emt 0:00:05]} 3. c4 {[%emt 0:00:24]} d6 {[%emt 0:00:21]} 4. Nc3 {[%emt 0:00:58]} Nd7 {[%emt 0:00:43]} 5. Nf3 {[%emt 0:01:15]} e5 {[%emt 0:00:13]} 6. Be2 {[%emt 0:06:20]} Ne7 {[%emt 0:00:17]} 7. Be3 {[%emt 0:01:45]} O-O {[%emt 0:01:01]} 8. O-O {[%emt 0:09:10]} h6 {[%emt 0:09:27]} 9. Qd2 {[%emt 0:07:47]} Kh7 {[%emt 0:00:08]} 10. Rad1 {[%emt 0:01:32]} Nc6 {[%emt 0:14:45]} 11. Rfe1 {[%emt 0:02:30]} b6 {[%emt 0:02:41]} 12. dxe5 {[%emt 0:04:21]} Ndxe5 {[%emt 0:00:53]} 13. Nd4 {[%emt 0:03:21]} Bb7 {[%emt 0:03:03]} 14. Nxc6 {[%emt 0:04:58]} Nxc6 {[%emt 0:00:37]} 15. Nd5 {[%emt 0:04:24]} Re8 {[%emt 0:03:00]} 16. f3 {[%emt 0:00:16]} a5 {[%emt 0:01:22]} 17. b3 {[%emt 0:03:58]} Ne5 {[%emt 0:04:06]} 18. Bd4 {[%emt 0:01:48]} c5 {[%emt 0:07:18]} 19. Bc3 {[%emt 0:00:36]} Nc6 {[%emt 0:01:33]} 20. Bxg7 {[%emt 0:00:53]} Kxg7 {[%emt 0:02:00]} 21. Bf1 {[%emt 0:03:49]} Nd4 {[%emt 0:03:20]} 22. Nc3 {[%emt 0:02:47]} Qf6 {[%emt 0:06:59]} 23. Nb5 {[%emt 0:04:04]} Nxb5 {[%emt 0:04:03]} 24. cxb5 {[%emt 0:00:03]} Rad8 {[%emt 0:00:49]} 25. Bc4 {[%emt 0:01:07]} Re5 {[%emt 0:00:53]} 26. Re3 {[%emt 0:06:48]} d5 {[%emt 0:14:26]} 27. exd5 {[%emt 0:00:44]} Rd6 {[%emt 0:00:45]} 28. Qe1 {[%emt 0:03:19]} Rxe3 {[%emt 0:01:15]} 29. Qxe3 {[%emt 0:00:02]} Bc8 {[%emt 0:00:26]} 30. g3 {[%emt 0:03:35]} g5 {[%emt 0:00:26]} 31. Re1 {[%emt 0:05:56]} Bd7 {[%emt 0:00:54]} 32. Kg2 {[%emt 0:01:09]} Bc8 {[%emt 0:02:57]} 33. a4 {[%emt 0:01:08]} Bb7 {[%emt 0:02:57]} 34. Qe4 {[%emt 0:02:43]} Bc8 {[%emt 0:00:10]} 35. Re2 {[%emt 0:01:36]} Bf5 {[%emt 0:01:02]} 36. Qe5 {[%emt 0:01:29]} Qxe5 {[%emt 0:01:00]} 37. Rxe5 {[%emt 0:00:01]} Bd7 {[%emt 0:00:18]} 38. Kf2 {[%emt 0:03:29]} Kf8 {[%emt 0:01:21]} 39. Re4 {[%emt 0:01:38]} Bf5 {[%emt 0:00:22]} 40. Re1 {[%emt 0:00:00]} Rd8 {[%emt 0:00:00]} 41. h4 {[%emt 0:05:07]} f6 {[%emt 0:11:46]} 42. hxg5 {[%emt 0:08:28]} hxg5 {[%emt 0:00:07]} 43. f4 {[%emt 0:00:53]} gxf4 {[%emt 0:02:04]} 44. gxf4 {[%emt 0:00:01]} Rd7 {[%emt 0:02:18]} 45. Rg1 {[%emt 0:03:25]} Be4 {[%emt 0:03:53]} 46. Rd1 {[%emt 0:00:58]} Rd6 {[%emt 0:02:39]} 47. Ke3 {[%emt 0:00:50]} Bf5 {[%emt 0:00:09]} 48. Rg1 {[%emt 0:01:22]} Rd7 {[%emt 0:00:28]} 49. Kf3 {[%emt 0:00:51]} Rd8 {[%emt 0:05:01]} 50. Rh1 {[%emt 0:00:33]} Kg7 {[%emt 0:02:41]} 51. Re1 {[%emt 0:01:26]} Kf8 {[%emt 0:00:11]} 52. Rg1 {[%emt 0:01:25]} Rd7 {[%emt 0:00:20]} 53. Rd1 {[%emt 0:03:20]} Rd6 {[%emt 0:00:35]} 54. Rd2 {[%emt 0:00:07]} Kg7 {[%emt 0:02:38]} 55. Ke3 {[%emt 0:00:27]} Kf8 {[%emt 0:00:32]} 56. Bd3 {[%emt 0:01:08]} Bxd3 {[%emt 0:09:58]} 57. Rxd3 {[%emt 0:00:04]} f5 {[%emt 0:00:13]} 58. Kd2 {[%emt 0:02:43]} Ke7 {[%emt 0:02:25]} 59. Re3+ {[%emt 0:00:40]} Kd7 {[%emt 0:01:33]} 60. Re5 {[%emt 0:00:01]} Rh6 {[%emt 0:00:22]} 61. Rxf5 {[%emt 0:00:33]} Kd6 {[%emt 0:00:30]} 62. Re5 {[%emt 0:03:52]} Rh2+ {[%emt 0:00:40]} 63. Kd3 {[%emt 0:00:50]} Rh1 {[%emt 0:00:30]} 64. Re6+ {[%emt 0:04:15]} Kxd5 65. Rxb6 {[%emt 0:00:10]} Rh3+ {[%emt 0:00:25]} 66. Kc2 {[%emt 0:00:06]} Rh2+ {[%emt 0:00:28]} 67. Kc3 {[%emt 0:00:12]} Rh3+ {[%emt 0:00:21]} 68. Kb2 {[%emt 0:00:03]} c4 {[%emt 0:00:19]} 69. bxc4+ {[%emt 0:00:08]} Kxc4 {[%emt 0:00:01]} 70. Rc6+ {[%emt 0:00:34]} Kb4 {[%emt 0:00:09]} 71. b6 {[%emt 0:01:18]} Rh2+ {[%emt 0:03:33]} 72. Kc1 {[%emt 0:00:12]} Rh1+ {[%emt 0:00:36]} 73. Kd2 {[%emt 0:02:16]} Kxa4 {[%emt 0:00:19]} 74. Rc1 {[%emt 0:02:07]} Rh2+ {[%emt 0:00:54]} 75. Kc3 {[%emt 0:00:06]} Rh7 {[%emt 0:00:40]} 76. Kc4 {[%emt 0:01:08]} Ka3 {[%emt 0:00:21]} 77. Rb1 {[%emt 0:01:37]} Rb7 {[%emt 0:00:22]} 78. Kb5 {[%emt 0:00:17]} Ka2 {[%emt 0:00:13]} 79. Rf1 {[%emt 0:00:23]} a4 {[%emt 0:00:05]} 80. Kc6 {[%emt 0:00:17]} Rb8 {[%emt 0:00:21]} 81. b7 {[%emt 0:00:11]} 1-0

[Event "ESCC-65 2022"]
[Site "Lublin"]
[Date "2022.07.13"]
[Round "9.3"]
[White "Praszak, Michal"]
[Black "Lederman, Leon"]
[Result "1-0"]
[ECO "A56"]
[WhiteElo "2048"]
[BlackElo "2213"]
[Annotator "ChessBase"]
[PlyCount "129"]
[EventDate "2022.07.05"]
[EventType "swiss"]
[EventCountry "POL"]
[SourceTitle "playchess.com"]
[Source "ChessBase"]
[SourceQuality "1"]
[TimeControl "40/5400+30:1800+30"]

1. d4 {[%emt 0:00:02]} Nf6 {[%emt 0:00:05]} 2. c4 {[%emt 0:00:19]} c5 {[%emt 0:00:04]} 3. d5 {[%emt 0:00:23]} e5 {[%emt 0:00:04]} 4. Nc3 {[%emt 0:00:12]} d6 {[%emt 0:00:04]} 5. e4 {[%emt 0:00:14]} Be7 {[%emt 0:00:04]} 6. g3 {[%emt 0:00:25]} O-O {[%emt 0:00:06]} 7. Bg2 {[%emt 0:00:05]} Ne8 {[%emt 0:00:05]} 8. Nge2 {[%emt 0:01:05]} Nd7 {[%emt 0:00:09]} 9. O-O {[%emt 0:00:10]} Rb8 {[%emt 0:00:03]} 10. a4 {[%emt 0:00:41]} Nc7 {[%emt 0:00:14]} 11. Nb5 {[%emt 0:01:17]} Nxb5 {[%emt 0:00:20]} 12. axb5 {[%emt 0:00:29]} a6 {[%emt 0:00:03]} 13. Nc3 {[%emt 0:00:22]} Bg5 {[%emt 0:01:39]} 14. b3 {[%emt 0:03:30]} g6 {[%emt 0:00:33]} 15. Bh3 {[%emt 0:03:02]} Bxc1 {[%emt 0:04:40]} 16. Qxc1 {[%emt 0:00:03]} Nf6 {[%emt 0:01:07]} 17. Bxc8 {[%emt 0:00:20]} Qxc8 {[%emt 0:00:04]} 18. f3 {[%emt 0:20:44]} Kg7 {[%emt 0:05:30]} 19. Ra2 {[%emt 0:02:01]} h6 {[%emt 0:01:46]} 20. Rg2 {[%emt 0:02:46]} Ne8 21. f4 {[%emt 0:01:37]} f6 {[%emt 0:06:27]} 22. f5 {[%emt 0:00:50]} g5 {[%emt 0:00:06]} 23. Qd1 {[%emt 0:01:20]} Qd7 {[%emt 0:03:26]} 24. Ra2 {[%emt 0:01:11]} Nc7 {[%emt 0:01:07]} 25. Qh5 {[%emt 0:21:46]} Qf7 {[%emt 0:00:05]} 26. Qxf7+ {[%emt 0:01:51]} Rxf7 {[%emt 0:00:12]} 27. b6 {[%emt 0:00:27]} Ne8 {[%emt 0:01:08]} 28. Kf2 {[%emt 0:00:59]} Kh8 {[%emt 0:05:47]} 29. Ke3 {[%emt 0:00:57]} Rh7 {[%emt 0:00:48]} 30. Kd3 {[%emt 0:00:24]} g4 {[%emt 0:04:54]} 31. Nd1 {[%emt 0:00:19]} Rd8 {[%emt 0:04:04]} 32. Ne3 {[%emt 0:00:10]} h5 {[%emt 0:00:04]} 33. Rg1 {[%emt 0:01:06]} Rdd7 {[%emt 0:00:43]} 34. Ng2 {[%emt 0:00:32]} Kg7 {[%emt 0:12:18]} 35. Rb1 {[%emt 0:00:35]} Rd8 {[%emt 0:00:15]} 36. b4 {[%emt 0:01:11]} cxb4 {[%emt 0:00:20]} 37. Rxb4 {[%emt 0:00:05]} Rc8 {[%emt 0:00:17]} 38. Ra5 {[%emt 0:02:33]} Kg8 {[%emt 0:01:22]} 39. Rb1 {[%emt 0:03:27]} Rd7 {[%emt 0:03:55]} 40. Ne3 {[%emt 0:00:00]} Kf8 {[%emt 0:00:00]} 41. Nd1 {[%emt 0:04:04]} Rh7 {[%emt 0:12:07]} 42. Ne3 {[%emt 0:02:21]} Rd7 {[%emt 0:00:32]} 43. Rh1 {[%emt 0:08:53]} Rc5 {[%emt 0:05:13]} 44. Ra2 {[%emt 0:00:27]} Ng7 {[%emt 0:00:15]} 45. h3 {[%emt 0:00:24]} gxh3 {[%emt 0:00:09]} 46. Rxh3 {[%emt 0:00:02]} Kg8 {[%emt 0:10:25]} 47. Rh1 {[%emt 0:02:33]} Re7 {[%emt 0:01:13]} 48. g4 {[%emt 0:01:07]} hxg4 {[%emt 0:00:08]} 49. Nxg4 {[%emt 0:00:07]} Ne8 {[%emt 0:00:12]} 50. Ne3 {[%emt 0:10:07]} Rg7 {[%emt 0:00:21]} 51. Rh4 {[%emt 0:00:44]} Kf7 {[%emt 0:04:06]} 52. Rxa6 {[%emt 0:01:27]} Rc8 {[%emt 0:01:41]} 53. Ra7 {[%emt 0:00:47]} Kg8 {[%emt 0:00:39]} 54. Rg4 {[%emt 0:00:29]} Rb8 {[%emt 0:00:20]} 55. Kc3 {[%emt 0:01:56]} Rxg4 {[%emt 0:01:06]} 56. Nxg4 {[%emt 0:00:02]} Kf7 {[%emt 0:00:08]} 57. Kb4 {[%emt 0:00:29]} Ke7 {[%emt 0:00:35]} 58. Ra1 {[%emt 0:00:48]} Kf7 {[%emt 0:00:24]} 59. Ne3 {[%emt 0:04:39]} Rc8 {[%emt 0:01:24]} 60. Nd1 {[%emt 0:00:32]} Ng7 {[%emt 0:00:44]} 61. Nc3 {[%emt 0:01:06]} Rh8 {[%emt 0:00:42]} 62. Ra7 {[%emt 0:00:21]} Rb8 {[%emt 0:05:02]} 63. Nb5 {[%emt 0:00:39]} Ne8 {[%emt 0:00:30]} 64. Nc7 {[%emt 0:00:30]} Kf8 {[%emt 0:00:30]} 65. Kb5 {[%emt 0:00:30]} 1-0

[Event "ESCC-65 2022"]
[Site "Lublin"]
[Date "2022.07.13"]
[Round "9.4"]
[White "Schulz, Michael"]
[Black "Bogdanov, Valentin"]
[Result "1/2-1/2"]
[ECO "D00"]
[WhiteElo "2217"]
[BlackElo "2333"]
[Annotator "ChessBase"]
[PlyCount "25"]
[EventDate "2022.07.05"]
[EventType "swiss"]
[EventCountry "POL"]
[SourceTitle "playchess.com"]
[Source "ChessBase"]
[SourceQuality "1"]
[TimeControl "40/5400+30:1800+30"]

1. d4 {[%emt 0:00:03]} d5 {[%emt 0:00:07]} 2. Bf4 {[%emt 0:00:14]} Nf6 {[%emt 0:00:28]} 3. e3 {[%emt 0:00:10]} Bf5 {[%emt 0:00:31]} 4. Bd3 {[%emt 0:02:07]} Bxd3 {[%emt 0:02:21]} 5. Qxd3 {[%emt 0:00:27]} c6 {[%emt 0:00:28]} 6. Nd2 {[%emt 0:02:17]} e6 {[%emt 0:01:30]} 7. Ngf3 {[%emt 0:00:52]} Bd6 {[%emt 0:02:16]} 8. Bxd6 {[%emt 0:04:13]} Qxd6 {[%emt 0:00:04]} 9. O-O {[%emt 0:01:33]} Nbd7 {[%emt 0:01:19]} 10. c3 {[%emt 0:08:31]} O-O {[%emt 0:00:34]} 11. e4 {[%emt 0:01:34]} dxe4 {[%emt 0:02:17]} 12. Nxe4 {[%emt 0:00:29]} Nxe4 {[%emt 0:00:19]} 13. Qxe4 1/2-1/2

[Event "ESCC-65 2022"]
[Site "Lublin"]
[Date "2022.07.13"]
[Round "9.5"]
[White "Sokolowski, Ryszard"]
[Black "Malesevic, Nedeljko"]
[Result "1-0"]
[ECO "D31"]
[WhiteElo "2050"]
[BlackElo "2228"]
[Annotator "ChessBase"]
[PlyCount "81"]
[EventDate "2022.07.05"]
[EventType "swiss"]
[EventCountry "POL"]
[SourceTitle "playchess.com"]
[Source "ChessBase"]
[SourceQuality "1"]
[TimeControl "40/5400+30:1800+30"]

1. d4 {[%emt 0:00:03]} d5 {[%emt 0:00:07]} 2. c4 {[%emt 0:00:05]} e6 {[%emt 0:00:11]} 3. Nc3 {[%emt 0:00:04]} c6 {[%emt 0:00:12]} 4. e4 {[%emt 0:00:13]} dxe4 {[%emt 0:00:41]} 5. Nxe4 {[%emt 0:00:02]} Bb4+ {[%emt 0:03:37]} 6. Bd2 {[%emt 0:00:01]} Be7 {[%emt 0:01:05]} 7. Nf3 {[%emt 0:00:35]} Nf6 {[%emt 0:01:04]} 8. Bd3 {[%emt 0:09:31]} O-O {[%emt 0:08:01]} 9. Nxf6+ {[%emt 0:03:18]} Bxf6 {[%emt 0:00:28]} 10. Qe2 {[%emt 0:00:13]} Re8 {[%emt 0:04:45]} 11. O-O-O {[%emt 0:08:32]} Nd7 {[%emt 0:06:49]} 12. g4 {[%emt 0:02:55]} g6 {[%emt 0:03:53]} 13. g5 {[%emt 0:21:27]} Bg7 {[%emt 0:01:10]} 14. h4 {[%emt 0:00:33]} c5 {[%emt 0:07:15]} 15. h5 {[%emt 0:01:22]} cxd4 {[%emt 0:05:42]} 16. hxg6 {[%emt 0:00:26]} fxg6 {[%emt 0:01:13]} 17. Bb4 {[%emt 0:05:02]} Ne5 {[%emt 0:08:12]} 18. Nxe5 {[%emt 0:07:14]} Qxg5+ {[%emt 0:01:59]} 19. Bd2 {[%emt 0:00:14]} Qxe5 {[%emt 0:00:21]} 20. Qg4 {[%emt 0:00:30]} Rf8 {[%emt 0:16:36]} 21. Rxh7 {[%emt 0:03:47]} Kxh7 {[%emt 0:02:17]} 22. Qxg6+ {[%emt 0:00:27]} Kg8 {[%emt 0:00:07]} 23. Rg1 {[%emt 0:25:24]} Rf7 {[%emt 0:14:44]} 24. Qh7+ {[%emt 0:01:33]} Kf8 {[%emt 0:00:07]} 25. Bb4+ {[%emt 0:00:14]} Ke8 {[%emt 0:00:31]} 26. Bg6 {[%emt 0:00:23]} Qf4+ {[%emt 0:04:04]} 27. Kb1 {[%emt 0:00:01]} Bf8 {[%emt 0:03:35]} 28. Qg8 {[%emt 0:04:45]} Kd7 {[%emt 0:00:57]} 29. Bxf7 {[%emt 0:00:26]} Qe4+ {[%emt 0:00:51]} 30. Ka1 {[%emt 0:00:27]} Bxb4 {[%emt 0:00:27]} 31. a3 {[%emt 0:00:33]} Bd6 {[%emt 0:01:39]} 32. Be8+ {[%emt 0:01:36]} Kc7 {[%emt 0:00:17]} 33. Rg7+ {[%emt 0:00:06]} Kb6 {[%emt 0:00:36]} 34. Bg6 {[%emt 0:01:20]} Qh1+ {[%emt 0:00:19]} 35. Ka2 Qc6 {[%emt 0:00:59]} 36. Qd8+ {[%emt 0:00:49]} Ka6 {[%emt 0:01:49]} 37. Bd3 Bc5 {[%emt 0:00:24]} 38. b4 {[%emt 0:00:37]} Qb6 {[%emt 0:01:11]} 39. Qe8 {[%emt 0:00:47]} Bd7 {[%emt 0:01:13]} 40. Qxd7 {[%emt 0:00:00]} Bxb4 {[%emt 0:00:00]} 41. c5+ {[%emt 0:00:14]} 1-0

[Event "ESCC-65 2022"]
[Site "Lublin"]
[Date "2022.07.13"]
[Round "9.6"]
[White "Syre, Christian"]
[Black "Biro, Sandor"]
[Result "1-0"]
[ECO "A05"]
[WhiteElo "2243"]
[BlackElo "2116"]
[Annotator "ChessBase"]
[PlyCount "73"]
[EventDate "2022.07.05"]
[EventType "swiss"]
[EventCountry "POL"]
[SourceTitle "playchess.com"]
[Source "ChessBase"]
[SourceQuality "1"]
[TimeControl "40/5400+30:1800+30"]

1. Nf3 {[%emt 0:00:27]} Nf6 {[%emt 0:00:09]} 2. c4 {[%emt 0:00:48]} g6 {[%emt 0:00:24]} 3. Nc3 {[%emt 0:00:22]} d5 {[%emt 0:00:19]} 4. cxd5 {[%emt 0:01:47]} Nxd5 {[%emt 0:00:10]} 5. Qb3 {[%emt 0:02:18]} Nb6 {[%emt 0:01:11]} 6. d4 {[%emt 0:05:33]} Bg7 {[%emt 0:03:10]} 7. Bf4 {[%emt 0:00:27]} O-O {[%emt 0:02:35]} 8. e4 {[%emt 0:11:35]} Nc6 {[%emt 0:11:10]} 9. d5 {[%emt 0:01:05]} e5 {[%emt 0:00:11]} 10. Be3 {[%emt 0:13:22]} Nd4 {[%emt 0:01:10]} 11. Qd1 {[%emt 0:04:27]} Bg4 {[%emt 0:13:19]} 12. Be2 {[%emt 0:00:45]} Nxe2 {[%emt 0:08:48]} 13. Qxe2 {[%emt 0:00:06]} f5 {[%emt 0:00:11]} 14. Bxb6 {[%emt 0:12:23]} cxb6 {[%emt 0:07:35]} 15. h3 {[%emt 0:07:46]} fxe4 {[%emt 0:14:27]} 16. hxg4 {[%emt 0:00:42]} exf3 {[%emt 0:00:08]} 17. gxf3 {[%emt 0:00:08]} Rc8 {[%emt 0:02:51]} 18. Rd1 {[%emt 0:01:07]} b5 {[%emt 0:03:40]} 19. Kf1 {[%emt 0:05:26]} Rc4 {[%emt 0:03:04]} 20. Kg2 {[%emt 0:01:48]} Rd4 {[%emt 0:06:12]} 21. Rxd4 {[%emt 0:06:45]} exd4 {[%emt 0:01:35]} 22. Qe6+ {[%emt 0:00:05]} Rf7 {[%emt 0:03:18]} 23. Nxb5 {[%emt 0:00:31]} Kf8 {[%emt 0:01:39]} 24. Rxh7 {[%emt 0:04:40]} Re7 {[%emt 0:07:17]} 25. Qxg6 {[%emt 0:00:35]} Qxd5 {[%emt 0:00:19]} 26. Nd6 {[%emt 0:05:15]} Qc6 {[%emt 0:07:39]} 27. Rh5 {[%emt 0:07:15]} d3 {[%emt 0:00:50]} 28. Qxd3 {[%emt 0:02:29]} Re6 {[%emt 0:00:31]} 29. Nf5 {[%emt 0:01:32]} Bxb2 {[%emt 0:00:25]} 30. Rh7 {[%emt 0:01:49]} Bf6 {[%emt 0:00:41]} 31. Qb3 {[%emt 0:01:14]} b5 {[%emt 0:00:26]} 32. Rxa7 {[%emt 0:00:03]} Qc4 {[%emt 0:00:21]} 33. Qa3+ {[%emt 0:00:31]} b4 {[%emt 0:00:25]} 34. Qa4 {[%emt 0:00:05]} Re1 {[%emt 0:00:23]} 35. Ng3 {[%emt 0:00:32]} Qc1 {[%emt 0:00:31]} 36. Qxb4+ {[%emt 0:00:16]} Be7 {[%emt 0:00:55]} 37. Rxe7 {[%emt 0:00:27]} 1-0

[Event "ESCC-65 2022"]
[Site "Lublin"]
[Date "2022.07.13"]
[Round "9.7"]
[White "Krupa, Jerzy"]
[Black "Dobosz, Henryk"]
[Result "0-1"]
[ECO "B49"]
[WhiteElo "1771"]
[BlackElo "2354"]
[Annotator "ChessBase"]
[PlyCount "68"]
[EventDate "2022.07.05"]
[EventType "swiss"]
[EventCountry "POL"]
[SourceTitle "playchess.com"]
[Source "ChessBase"]
[SourceQuality "1"]
[TimeControl "40/5400+30:1800+30"]

1. e4 {[%emt 0:00:04]} c5 {[%emt 0:00:14]} 2. Nf3 {[%emt 0:00:10]} e6 {[%emt 0:00:34]} 3. d4 {[%emt 0:01:18]} cxd4 {[%emt 0:00:10]} 4. Nxd4 {[%emt 0:00:02]} Nc6 {[%emt 0:00:10]} 5. Nc3 {[%emt 0:02:21]} Qc7 {[%emt 0:00:09]} 6. Be3 {[%emt 0:02:03]} a6 {[%emt 0:00:07]} 7. Be2 {[%emt 0:01:35]} Nf6 {[%emt 0:01:54]} 8. O-O {[%emt 0:01:13]} d6 {[%emt 0:14:45]} 9. f4 {[%emt 0:01:27]} Bd7 {[%emt 0:06:52]} 10. Nxc6 {[%emt 0:10:57]} Bxc6 {[%emt 0:02:16]} 11. Bf3 {[%emt 0:00:20]} Be7 {[%emt 0:05:46]} 12. Qe1 {[%emt 0:16:32]} b5 {[%emt 0:02:43]} 13. a3 {[%emt 0:01:38]} O-O {[%emt 0:07:45]} 14. Qg3 {[%emt 0:02:11]} Nd7 {[%emt 0:06:15]} 15. Bd4 {[%emt 0:03:54]} e5 {[%emt 0:04:04]} 16. Be3 {[%emt 0:04:07]} exf4 {[%emt 0:06:59]} 17. Bxf4 {[%emt 0:02:34]} Ne5 {[%emt 0:00:11]} 18. Rad1 {[%emt 0:06:40]} Rad8 {[%emt 0:02:06]} 19. h4 {[%emt 0:13:33]} Bf6 {[%emt 0:09:22]} 20. Nd5 {[%emt 0:08:46]} Bxd5 {[%emt 0:00:11]} 21. Rxd5 {[%emt 0:00:11]} Qxc2 {[%emt 0:01:03]} 22. Bh6 {[%emt 0:06:31]} Ng6 {[%emt 0:02:50]} 23. h5 {[%emt 0:02:06]} gxh6 {[%emt 0:01:12]} 24. hxg6 {[%emt 0:05:33]} hxg6 {[%emt 0:07:05]} 25. Bd1 {[%emt 0:00:50]} Qxb2 {[%emt 0:00:38]} 26. Bh5 {[%emt 0:04:47]} Be5 {[%emt 0:01:35]} 27. Qg4 {[%emt 0:00:39]} Bg7 {[%emt 0:00:16]} 28. Bxg6 {[%emt 0:00:46]} fxg6 {[%emt 0:00:08]} 29. Qe6+ {[%emt 0:00:59]} Kh7 {[%emt 0:01:43]} 30. Rdf5 {[%emt 0:00:54]} gxf5 {[%emt 0:00:30]} 31. exf5 {[%emt 0:00:20]} Qd4+ {[%emt 0:00:21]} 32. Rf2 {[%emt 0:00:24]} Rf6 {[%emt 0:01:42]} 33. Qe2 {[%emt 0:00:37]} Rxf5 {[%emt 0:00:19]} 34. Qc2 {[%emt 0:00:27]} Rdf8 {[%emt 0:00:14]} 0-1